[Event "GRENKE Chess Classic 2024"]
[Site "Karlsruhe"]
[Date "2024.03.31"]
[Round "9.2"]
[White "Carlsen, Magnus"]
[Black "Keymer, Vincent"]
[Result "1-0"]
[ECO "E21"]
[WhiteElo "2830"]
[BlackElo "2738"]
[Annotator "TA"]
[PlyCount "145"]
[EventDate "2024.03.26"]
[EventType "tourn"]
[EventCountry "GER"]
[SourceTitle "playchess.com"]
[Source "ChessBase"]
[SourceQuality "1"]
[TimeControl "2700+10"]

{[%evp 65,145,114,121,121,128,126,123,123,123,112,112,112,115,115,115,115,109,92,84,83,90,91,126,125,117,90,125,116,116,102,102,85,94,78,128,118,112,124,135,131,118,135,127,127,143,133,205,193,198,194,201,199,206,198,205,206,199,199,309,199,246,246,206,166,246,246,245,231,320,305,346,331,305,305,695,709,709,684,700,686,29991,29992]} 1. d4 {[%emt 0:00:10]} Nf6 {[%emt 0:00:03]} 2. c4 {[%emt 0:00:00]} e6 {[%emt 0:00:02]} 3. Nc3 {[%emt 0:00:02]} Bb4 {[%emt 0:00:02]} 4. Nf3 {[%emt 0:00:03]} d6 {[%emt 0:00:03]} 5. g3 {[%emt 0:00:04]} Bxc3+ {[%emt 0:00:50]} 6. bxc3 {[%emt 0:00:01]} b6 {[%emt 0:00:01]} 7. Nd2 {[%emt 0:01:32]} Bb7 {[%emt 0:00:04]} 8. f3 {[%emt 0:00:05]} e5 {[%emt 0:02:39]} 9. e4 {[%emt 0:00:15]} O-O {[%emt 0:00:39]} 10. Bd3 {[%emt 0:01:32]} Nc6 {[%emt 0:03:35]} 11. Nb3 {[%emt 0:00:50]} Ne7 {[%emt 0:04:41]} 12. O-O {[%emt 0:00:44]} h6 {[%emt 0:06:39]} 13. Rb1 {[%emt 0:01:09]} Ba6 {[%emt 0:03:31]} 14. f4 {[%emt 0:06:26]} Nh7 {[%emt 0:02:26]} 15. f5 {[%emt 0:02:53]} Kh8 {[%emt 0:01:21]} 16. Na1 {[%emt 0:00:46]} Ng8 {[%emt 0:01:47]} 17. Nc2 {[%emt 0:02:44]} g5 {[%emt 0:01:26]} 18. Ne3 {[%emt 0:01:54]} Ngf6 {[%emt 0:00:22]} 19. Rb2 {[%emt 0:00:11]} Re8 {[%emt 0:01:50]} 20. Qf3 {[%emt 0:01:40]} c5 {[%emt 0:01:38]} 21. d5 {[%emt 0:02:33]} Rg8 {[%emt 0:00:53]} 22. h3 {[%emt 0:02:34]} Kg7 {[%emt 0:00:16]} 23. a4 {[%emt 0:00:48]} Bc8 {[%emt 0:00:25]} 24. Ra2 {[%emt 0:00:02]} Bd7 {[%emt 0:00:14]} 25. Qd1 {[%emt 0:00:14]} Rb8 {[%emt 0:01:48]} 26. Bd2 {[%emt 0:00:18]} Rb7 {[%emt 0:02:57]} 27. Be1 {[%emt 0:00:14]} Kf8 {[%emt 0:01:13]} 28. Rff2 {[%emt 0:00:25]} Ke7 {[%emt 0:01:06]} 29. Rfb2 {[%emt 0:00:04]} Qc7 {[%emt 0:00:28]} 30. g4 {[%emt 0:01:24]} a6 {[%emt 0:01:24]} 31. Qe2 {[%emt 0:02:45]} a5 {[%emt 0:01:16]} 32. Qf3 {[%emt 0:00:23]} Qd8 {[%emt 0:00:08]} 33. Rh2 {[%emt 0:00:16]} Qe8 {[%emt 0:00:22]} 34. Bc2 {[%emt 0:00:02]} Qf8 {[%emt 0:00:01]} 35. Kf1 {[%emt 0:01:12]} Kd8 {[%emt 0:00:17]} 36. Bd1 {[%emt 0:00:44]} Kc7 {[%emt 0:00:57]} 37. Ke2 {[%emt 0:00:22]} Rb8 {[%emt 0:00:04]} 38. Kd2 {[%emt 0:00:05]} Qg7 {[%emt 0:00:20]} 39. Kc1 {[%emt 0:00:03]} Rh8 {[%emt 0:00:20]} 40. Rh1 {[%emt 0:00:35]} Rbg8 {[%emt 0:00:33]} 41. Rah2 {[%emt 0:00:16]} Qf8 {[%emt 0:00:15]} 42. Kb2 {[%emt 0:00:07]} Qe8 {[%emt 0:00:08]} 43. Ka3 {[%emt 0:00:01]} Qf8 {[%emt 0:00:01]} 44. Bd2 {[%emt 0:00:31]} Qe8 {[%emt 0:00:15]} 45. Bc1 {[%emt 0:00:09]} Qf8 {[%emt 0:00:04]} 46. Nf1 {[%emt 0:00:19]} Qe7 {[%emt 0:00:40]} 47. Ng3 {[%emt 0:00:18]} Qf8 {[%emt 0:01:12]} 48. h4 {[%emt 0:00:54]} Qg7 {[%emt 0:01:03]} 49. Qg2 {[%emt 0:00:56]} Bc8 {[%emt 0:00:23]} ({Better is} 49... gxh4 50. Rxh4 Ng5) 50. hxg5 $16 {[%emt 0:01:22]} Nxg5 {[%emt 0:00:01]} 51. Nh5 {[%emt 0:03:04]} Nxh5 {[%emt 0:00:02]} 52. Rxh5 {[%emt 0:00:02]} (52. gxh5 $6 Ba6 $11) 52... f6 {[%emt 0:00:43] [#]} 53. Qh2 $1 {[%emt 0:00:39]} Nxe4 {[%emt 0:00:15]} 54. Bxh6 {[%emt 0:00:06]} Qe7 {[%emt 0:00:09]} 55. Kb2 {[%emt 0:02:38]} Bd7 {[%emt 0:00:11] [#]} (55... Ng5 $16) 56. Rh4 $1 $18 {[%emt 0:00:54]} Be8 {[%emt 0:00:15]} 57. Bc2 {[%emt 0:00:26]} Rxh6 {[%emt 0:00:01]} 58. Rxh6 {[%emt 0:00:01]} Ng5 {[%emt 0:00:01]} 59. Rh8 {[%emt 0:00:28]} Rxh8 {[%emt 0:00:26]} 60. Qxh8 {[%emt 0:00:01]} e4 {[%emt 0:00:09]} 61. Qh2 {[%emt 0:00:46]} (61. Rh6 $2 e3 62. Rh2 (62. Rxf6 $2 e2 $19) (62. Qxf6 $2 Qxf6 63. Rxf6 e2 $19) 62... e2 $19) 61... Nf3 (61... Nf7 {is a better defense.} 62. Kb3 Bd7) 62. Qf4 {[%emt 0:00:49]} Ng5 {[%emt 0:00:15]} (62... Ne5 $142 63. Kb3 (63. Bxe4 Bxa4 64. Ka2 Kb7 $18) (63. Qxe4 Qg7 $18) 63... Qd7) 63. Kb3 $18 {[%emt 0:00:29]} Bd7 {[%emt 0:00:04]} 64. Re1 {[%emt 0:01:01]} Qf8 {[%emt 0:00:21]} (64... Qe8 $142) 65. Ka3 $18 {[%emt 0:00:17]} ({Don't play} 65. Bxe4 $6 Qe8 66. Qf1 Bxa4+ (66... Nxe4 $2 {too greedy.} 67. Qf4 $18) 67. Kb2 Bd7 (67... Nxe4 $2 {is the wrong capture.} 68. Qg2 $18)) 65... Qh8 {[%emt 0:00:12]} 66. Bxe4 {[%emt 0:00:09]} Qh3 {[%emt 0:00:10]} 67. Kb2 {[%emt 0:00:12]} Qh7 {[%emt 0:00:08]} 68. Bc2 {[%emt 0:00:06]} Qg7 {[%emt 0:00:10]} 69. Re6 {[%emt 0:00:19]} Nf7 $2 {[%emt 0:00:01]} (69... Qf8 70. Qg3 Nh7) 70. g5 $18 {[%emt 0:00:41]} Qxg5 {[%emt 0:00:16]} 71. Qxg5 {[%emt 0:00:11]} fxg5 {[%emt 0:00:01]} 72. f6 {[%emt 0:00:07]} Ne5 {[%emt 0:00:19]} 73. Rxe5 {[%emt 0:00:02]} 1-0

[Event "GRENKE Chess Classic 2024"]
[Site "Karlsruhe"]
[Date "2024.03.31"]
[Round "9.3"]
[White "Rapport, Richard"]
[Black "Vachier-Lagrave, Maxime"]
[Result "1/2-1/2"]
[ECO "D30"]
[WhiteElo "2720"]
[BlackElo "2728"]
[Annotator "TA"]
[PlyCount "88"]
[EventDate "2024.03.26"]
[EventType "tourn"]
[EventCountry "GER"]
[SourceTitle "playchess.com"]
[Source "ChessBase"]
[SourceQuality "1"]
[TimeControl "2700+10"]

{[%evp 18,88,25,24,22,20,33,23,28,28,40,11,16,18,17,0,0,0,0,0,6,10,7,0,0,0,0,0,16,0,0,0,8,-16,-8,-7,-8,-7,-12,0,-8,-93,-89,-89,-13,-11,-8,-8,-7,-8,0,0,0,0,0,0,0,0,0,0,0,0,0,0,0,0,0,0,0,0,0,0,0]} 1. d4 {[%emt 0:00:10]} Nf6 {[%emt 0:00:02]} 2. c4 {[%emt 0:00:02]} e6 {[%emt 0:00:02]} 3. Nf3 {[%emt 0:00:03]} d5 {[%emt 0:00:02]} 4. Bg5 {[%emt 0:00:02]} h6 {[%emt 0:00:53]} 5. Bxf6 {[%emt 0:00:03]} Qxf6 {[%emt 0:00:02]} 6. Nc3 {[%emt 0:00:03]} Bb4 {[%emt 0:05:16]} 7. e3 {[%emt 0:00:03]} O-O {[%emt 0:00:36]} 8. Rc1 {[%emt 0:00:02]} c6 {[%emt 0:00:56]} 9. Bd3 {[%emt 0:00:49]} Nd7 {[%emt 0:00:19]} 10. O-O {[%emt 0:00:09]} Qe7 {[%emt 0:00:43]} 11. a3 {[%emt 0:01:34]} Bd6 {[%emt 0:00:21]} 12. c5 {[%emt 0:03:37]} Bc7 {[%emt 0:00:04] White has an edge.} 13. e4 {[%emt 0:00:01]} dxe4 {[%emt 0:00:43]} 14. Bxe4 {[%emt 0:01:03]} e5 {[%emt 0:01:52]} 15. Re1 {[%emt 0:08:03]} Qd8 {[%emt 0:00:02]} 16. Bb1 {[%emt 0:04:18]} exd4 $1 {[%emt 0:01:57]} 17. Qd3 {[%emt 0:00:26]} g6 {[%emt 0:00:34]} 18. Ba2 {[%emt 0:01:13]} Kh7 {[%emt 0:04:46]} 19. Qxd4 {[%emt 0:00:49]} (19. Nxd4 Nxc5 20. Qe3 Bb6 $17) 19... Ne5 $1 {[%emt 0:00:08]} 20. Qxd8 {[%emt 0:00:29]} Nxf3+ {[%emt 0:00:01]} 21. gxf3 {[%emt 0:00:01]} Bxd8 {[%emt 0:00:02]} 22. Ne4 {[%emt 0:00:28]} Bh3 {[%emt 0:01:05]} 23. Nd6 {[%emt 0:00:45]} Bg5 {[%emt 0:02:34]} 24. Rcd1 {[%emt 0:01:38] Inhibits Bd2.} Kg7 {[%emt 0:00:29]} 25. f4 {[%emt 0:00:21]} Bxf4 {[%emt 0:00:20]} 26. Re7 $1 {[%emt 0:00:11]} b6 {[%emt 0:02:45]} 27. Rd3 {[%emt 0:02:17]} Bxd6 {[%emt 0:02:24]} 28. cxd6 {[%emt 0:00:28]} Bf5 {[%emt 0:00:01]} 29. Rc3 {[%emt 0:00:57] [#]} (29. Rd1 $11) 29... c5 $1 $17 {[%emt 0:00:01]} 30. b4 {[%emt 0:00:02]} Rad8 {[%emt 0:01:49]} ({Black should try} 30... cxb4 $17 31. axb4 Rad8) 31. bxc5 $11 {[%emt 0:00:13] The position is equal.} bxc5 {[%emt 0:00:03]} 32. Rxc5 {[%emt 0:01:06]} Rxd6 {[%emt 0:00:01] next ...Rd1+ is good for Black.} 33. Rcc7 $1 {[%emt 0:00:34]} Kf6 {[%emt 0:02:32]} 34. Rxf7+ {[%emt 0:02:27]} Rxf7 {[%emt 0:00:01]} 35. Rxf7+ {[%emt 0:00:02][%mdl 4096] Endgame. KRB-KRB} Kg5 {[%emt 0:00:58]} 36. Rxa7 {[%emt 0:01:59]} Be4 {[%emt 0:04:18]} 37. Bb3 {[%emt 0:01:41] Dodges Rd1+} Rc6 {[%emt 0:00:44]} 38. Rd7 {[%emt 0:00:34]} Bf3 {[%emt 0:01:07]} 39. h3 {[%emt 0:01:48]} h5 {[%emt 0:00:21]} 40. Kh2 {[%emt 0:01:20]} Rc1 {[%emt 0:00:03]} 41. Bd5 {[%emt 0:02:12]} Rd1 {[%emt 0:00:27]} 42. Be6 {[%emt 0:00:02] [#] Kg3 would now be deadly.} Ra1 {[%emt 0:00:45][%cal Oh5h4] ( -> ...h4!)} 43. Bd5 {[%emt 0:00:19]} Rd1 {[%emt 0:00:42]} 44. Be6 {[%emt 0:00:01] aiming for Kg3.} Ra1 {[%emt 0:00:15] Weighted Error Value: White=0.08 (flawless) /Black=0.06 (flawless) .  Mistake:       	White=1     	Black=1      Inaccurate:     	White=1     	---        OK:         	White=17    	Black=10     Best:        	White=2     	Black=1      Strong:       	White=2     	Black=3} 1/2-1/2

[Event "GRENKE Chess Classic 2024"]
[Site "Karlsruhe"]
[Date "2024.03.31"]
[Round "10.1"]
[White "Fridman, Daniel"]
[Black "Rapport, Richard"]
[Result "1/2-1/2"]
[ECO "E17"]
[WhiteElo "2590"]
[BlackElo "2720"]
[Annotator "TA"]
[PlyCount "161"]
[EventDate "2024.03.26"]
[EventType "tourn"]
[EventCountry "GER"]
[SourceTitle "playchess.com"]
[Source "ChessBase"]
[SourceQuality "1"]
[TimeControl "2700+10"]

{[%evp 12,160,14,10,24,4,27,27,31,18,10,17,37,36,37,41,34,41,41,16,24,28,13,0,23,10,51,52,84,41,47,48,41,34,35,47,43,49,52,53,80,35,44,42,53,0,0,0,0,0,0,0,0,0,0,0,8,7,7,0,0,0,0,0,0,0,20,53,54,54,55,54,54,46,46,46,46,32,82,53,82,53,82,22,22,22,22,22,22,22,22,22,60,60,60,60,82,82,82,82,82,82,82,22,82,39,82,72,82,52,82,59,82,82,82,59,82,0,0,0,0,0,96,3,96,96,95,3,8,8,8,8,8,8,8,8,8,8,8,8,8,8,8,8,8,0,8,0,0,0,0]} 1. d4 {[%emt 0:00:02]} Nf6 {[%emt 0:00:03]} 2. Nf3 {[%emt 0:00:02]} b6 {[%emt 0:00:31]} 3. g3 {[%emt 0:00:16]} Bb7 {[%emt 0:00:01]} 4. Bg2 {[%emt 0:00:02]} e6 {[%emt 0:00:15]} 5. c4 {[%emt 0:00:17]} Be7 {[%emt 0:00:02]} 6. O-O {[%emt 0:00:05]} O-O {[%emt 0:00:03]} 7. Re1 {[%emt 0:02:35]} a5 {[%emt 0:00:20]} 8. Bf4 {[%emt 0:00:30]} d6 {[%emt 0:00:08]} 9. Nc3 {[%emt 0:01:05]} Ne4 {[%emt 0:00:04] Weiß hat minimalen Vorteil.} 10. Na4 {[%emt 0:00:56]} Ra7 {[%emt 0:03:26]} 11. Rc1 {[%emt 0:00:09]} Nd7 {[%emt 0:00:19]} 12. Nd2 {[%emt 0:02:36]} Nxd2 {[%emt 0:01:20]} 13. Qxd2 {[%emt 0:00:03]} (13. Bxd2 {vereinfacht} Bxg2 14. Kxg2 e5 15. Be3) 13... Bxg2 {[%emt 0:00:35]} 14. Kxg2 {[%emt 0:00:03]} e5 {[%emt 0:02:51]} 15. dxe5 {[%emt 0:01:33]} dxe5 {[%emt 0:00:06]} 16. Red1 {[%emt 0:00:11]} Qa8+ {[%emt 0:08:08]} 17. f3 {Aktives Gegenspiel!} Rd8 {[%emt 0:03:16][%cal Od7c5] Zielt auf ...Nc5! ab.} 18. Bg5 {[%emt 0:03:58]} f6 {[%emt 0:06:04][%cal Od7c5] Droht stark ...Nc5!} (18... Nc5 $5 19. Bxe7 (19. Qxd8+ Qxd8 20. Rxd8+ Bxd8 $11) 19... Rxd2 20. Rxd2 Nxa4 $18) 19. Be3 {[%emt 0:03:22]} e4 {[%emt 0:00:23] Und jetzt ...Ne5 wäre schön.} 20. Qd5+ {[%emt 0:01:58]} Qxd5 {[%emt 0:00:02]} 21. cxd5 {[%emt 0:00:06]} exf3+ {[%emt 0:00:04]} 22. exf3 {[%emt 0:00:03]} Rb7 {[%emt 0:00:59]} 23. Nc3 {[%emt 0:02:54]} Bc5 {[%emt 0:02:10]} 24. Bxc5 {[%emt 0:00:51]} Nxc5 {[%emt 0:00:22]} 25. Ne4 {[%emt 0:00:03]} Kf7 {[%emt 0:02:22]} 26. Nxc5 {[%emt 0:03:20]} bxc5 $16 {[%emt 0:00:02][%mdl 4096] Endspiel. KRR-KRR} 27. b3 {[%emt 0:00:29]} Rb5 {[%emt 0:00:15][%cal Oa5a4]} 28. Rd3 {[%emt 0:00:30]} (28. a4 $14 Rxb3 29. Rd2) 28... a4 $1 $11 {[%emt 0:02:42]} 29. bxa4 {[%emt 0:00:03]} Ra5 {[%emt 0:00:19]} 30. Rc4 {[%emt 0:00:02]} Rd6 {[%emt 0:01:16]} 31. Rb3 {[%emt 0:08:44]} Rxd5 {[%emt 0:00:07]} 32. Rb7 {[%emt 0:00:02]} Rd7 {[%emt 0:00:26]} 33. Rb5 {[%emt 0:03:52]} Rxb5 {[%emt 0:00:02]} 34. axb5 {[%emt 0:00:02] KR-KR} Rd2+ {[%emt 0:00:03]} 35. Kh3 {[%emt 0:00:02]} Rxa2 {[%emt 0:00:02]} 36. Rxc5 {[%emt 0:00:02]} Ra7 {[%emt 0:00:01]} 37. Kg4 {[%emt 0:00:02]} Ke6 {[%emt 0:01:04]} 38. Rh5 {[%emt 0:00:09]} Kf7 {[%emt 0:01:14]} 39. Rxh7 {[%emt 0:01:26]} c6 {[%emt 0:00:03]} 40. bxc6 {[%emt 0:00:27]} Rc7 {[%emt 0:00:02]} 41. Rh8 {[%emt 0:00:05]} Rxc6 {[%emt 0:00:02]} 42. h4 {[%emt 0:00:02]} Rc4+ {[%emt 0:00:18]} 43. f4 {[%emt 0:00:08]} Rc3 {[%emt 0:00:03]} 44. h5 {[%emt 0:00:05]} Ra3 {[%emt 0:00:29]} (44... f5+ $14 45. Kh4 Rc1) 45. Rb8 {[%emt 0:00:16]} Rc3 {[%emt 0:00:22]} 46. Kh4 {[%emt 0:01:37]} Rf3 {[%emt 0:00:03]} 47. Rb4 {[%emt 0:00:09]} ({Besser ist} 47. Rb5 $16) 47... Rf1 {[%emt 0:00:47]} 48. Ra4 {[%emt 0:01:01]} Kg8 {[%emt 0:00:17]} 49. Kg4 {[%emt 0:00:04]} Rh1 {[%emt 0:01:33]} 50. Ra5 {[%emt 0:00:34]} Kh7 {[%emt 0:00:05]} 51. Kf3 {[%emt 0:00:02]} Rf1+ {[%emt 0:00:21]} 52. Kg2 {[%emt 0:00:02]} Rb1 {[%emt 0:00:12]} 53. g4 {[%emt 0:00:06]} Rb3 {[%emt 0:00:04]} 54. Ra7 {[%emt 0:00:09]} Rc3 {[%emt 0:00:22]} 55. Re7 {[%emt 0:00:03]} Ra3 {[%emt 0:00:10]} 56. Kf2 {[%emt 0:00:02]} Kh6 {[%emt 0:00:47]} 57. Re8 {[%emt 0:00:23]} ({Vorzuziehen ist} 57. f5 $1 $16) 57... Kh7 {[%emt 0:00:30]} (57... Ra2+ $11 58. Kg3 Ra3+ 59. Kh4 g5+ 60. hxg6 Kxg6) 58. Re3 {[%emt 0:00:09]} Ra8 {[%emt 0:00:12]} 59. Kg3 {[%emt 0:00:03]} Ra4 {[%emt 0:01:04]} 60. Kf3 {[%emt 0:00:10]} Ra8 {[%emt 0:00:08]} 61. Rd3 {[%emt 0:00:10]} Re8 {[%emt 0:00:39]} 62. Rd7 {[%emt 0:00:08]} Kh6 {[%emt 0:00:06]} 63. Rd6 {[%emt 0:00:03]} Kh7 {[%emt 0:00:27]} 64. g5 {[%emt 0:00:04]} (64. Ra6 $16) 64... fxg5 {[%emt 0:00:15]} 65. fxg5 {[%emt 0:00:03]} Ra8 {[%emt 0:00:10]} 66. Re6 {[%emt 0:00:03]} Kg8 {[%emt 0:00:31] [#]} (66... Ra1 $11) 67. Kf4 {[%emt 0:00:31]} (67. g6 $1 $16) 67... Ra4+ {[%emt 0:00:42] [#]} (67... Kh7 $11 {hält das Gleichgewicht.}) 68. Re4 $1 $16 {[%emt 0:00:30]} Ra8 {[%emt 0:00:08]} 69. Kf5 {[%emt 0:00:27]} (69. g6 $16) 69... Ra5+ {[%emt 0:00:02] Die Stellung ist ausgeglichen.} 70. Re5 {[%emt 0:00:01]} g6+ $1 {[%emt 0:00:24]} 71. hxg6 {[%emt 0:00:04]} (71. Kxg6 Rxe5 72. Kf6 Rb5 $19) 71... Ra6 {[%emt 0:00:12]} 72. Re6 {[%emt 0:00:33]} Ra1 {[%emt 0:00:06]} 73. Re8+ {[%emt 0:00:04]} Kg7 {[%emt 0:00:01]} 74. Re7+ {[%emt 0:00:02]} Kg8 {[%emt 0:00:01]} 75. g7 {[%emt 0:00:10]} Ra6 {[%emt 0:00:19]} 76. Rb7 {[%emt 0:00:14]} Rc6 {[%emt 0:00:24]} 77. Kg4 {[%emt 0:00:03]} Rc1 {[%emt 0:00:16]} 78. Kh5 {[%emt 0:00:04]} Rc6 {[%emt 0:00:12]} 79. g6 {[%emt 0:00:07]} Rc5+ {[%emt 0:00:18]} 80. Kh6 {[%emt 0:00:02]} Rh5+ {[%emt 0:00:02]} 81. Kxh5 {[%emt 0:00:02] Gewichteter Fehlerwert: Weiß=0.12 (sehr präzise) /Schwarz=0.12 (sehr präzise) .  Fehler:       	Weiß=6     	Schwarz=4     Ungenau:       	Weiß=6     	Schwarz=8     OK:         	Weiß=25    	Schwarz=26    Bester:       	---       	Schwarz=5     Stark:        	Weiß=1     	Schwarz=2} 1/2-1/2

[Event "GRENKE Chess Classic 2024"]
[Site "Karlsruhe"]
[Date "2024.03.31"]
[Round "10.2"]
[White "Vachier-Lagrave, Maxime"]
[Black "Carlsen, Magnus"]
[Result "1/2-1/2"]
[ECO "A05"]
[WhiteElo "2728"]
[BlackElo "2830"]
[Annotator "TA"]
[PlyCount "84"]
[EventDate "2024.03.26"]
[EventType "tourn"]
[EventCountry "GER"]
[SourceTitle "playchess.com"]
[Source "ChessBase"]
[SourceQuality "1"]
[TimeControl "2700+10"]

{[%evp 10,84,17,12,11,4,4,5,6,10,12,0,14,22,11,18,24,25,25,20,67,16,12,0,0,0,0,0,0,-2,-3,-3,0,0,0,0,0,0,0,0,0,0,0,0,0,0,0,0,4,4,4,4,4,4,4,4,4,4,4,4,4,0,4,0,0,0,0,0,0,0,0,0,0,0,0,-8,-8]} 1. Nf3 {[%emt 0:00:04]} Nf6 {[%emt 0:00:06]} 2. g3 {[%emt 0:00:01]} b6 {[%emt 0:00:13]} 3. Bg2 {[%emt 0:00:04]} Bb7 {[%emt 0:00:01]} 4. b3 {[%emt 0:00:11]} g6 {[%emt 0:00:03]} 5. Bb2 {[%emt 0:00:01]} Bg7 {[%emt 0:00:01]} 6. c4 {[%emt 0:00:32]} O-O {[%emt 0:00:03]} 7. d4 {[%emt 0:00:19]} e6 {[%emt 0:00:07][%cal Be7e6,Be6d5,Bd5e4][%mdl 32]} 8. O-O {[%emt 0:00:03]} Na6 {[%emt 0:00:04]} 9. Nc3 {[%emt 0:01:25]} d5 {[%emt 0:00:02]} 10. e3 {[%emt 0:00:52]} c5 {[%emt 0:00:12]} 11. Qe2 {[%emt 0:00:01]} Qe7 {[%emt 0:00:42]} 12. cxd5 {[%emt 0:00:35]} exd5 {[%emt 0:00:02]} 13. Rfd1 {[%emt 0:00:10]} Rfd8 {[%emt 0:00:05]} 14. Rac1 {[%emt 0:00:13]} Nc7 {[%emt 0:00:44]} (14... Rac8 $11 {is more appropriate.}) 15. Ba3 {[%emt 0:02:57]} ({White should play} 15. dxc5 $14 bxc5 16. h4) 15... Ne4 $11 {[%emt 0:00:14] The position is equal.} 16. Nxe4 {[%emt 0:00:36]} dxe4 {[%emt 0:00:04]} 17. Nd2 {[%emt 0:00:02][%cal Rd4c5]} Ba6 {[%emt 0:00:32]} 18. Qe1 {[%emt 0:07:30][%cal Rd4c5]} Nb5 {[%emt 0:03:00]} 19. Bb2 {[%emt 0:00:02]} cxd4 {[%emt 0:00:09]} 20. Nxe4 {[%emt 0:00:02]} Bb7 {[%emt 0:00:29]} 21. exd4 {[%emt 0:00:41]} Nxd4 {[%emt 0:00:04]} 22. Nf6+ {[%emt 0:01:57]} Bxf6 {[%emt 0:01:48]} 23. Qxe7 Bxe7 {[%emt 0:00:01]} 24. Rxd4 {[%emt 0:00:28]} (24. Bxb7 $2 {is the wrong capture.} Ne2+ 25. Kg2 Nxc1 26. Rxc1 Rab8 $19) 24... Rxd4 {[%emt 0:00:03]} 25. Bxd4 {[%emt 0:00:03]} Rc8 {[%emt 0:00:24]} 26. Rxc8+ {[%emt 0:00:58]} Bxc8 {[%emt 0:00:01][%mdl 4096] Endgame. KBB-KBB} 27. Bd5 {[%emt 0:00:01]} Kf8 {[%emt 0:00:18]} 28. f4 {[%emt 0:00:06]} Bc5 {[%emt 0:00:05]} 29. Bxc5+ {[%emt 0:00:03]} bxc5 {[%emt 0:00:01] KB-KB} 30. Kf2 {[%emt 0:00:01]} Ke7 {[%emt 0:00:01]} 31. Ke3 {[%emt 0:00:03]} f6 {[%emt 0:00:02]} 32. Be4 {[%emt 0:00:10]} Kd6 {[%emt 0:00:15]} 33. Kd2 {[%emt 0:00:23]} Be6 {[%emt 0:00:47]} 34. Kc3 {[%emt 0:00:02]} Bf7 {[%emt 0:00:04]} 35. a3 {[%emt 0:00:13]} a5 {[%emt 0:00:02]} 36. b4 {[%emt 0:00:07]} cxb4+ {[%emt 0:00:01]} 37. axb4 {[%emt 0:00:01]} axb4+ {[%emt 0:00:01]} 38. Kxb4 {[%emt 0:00:01]} h6 {[%emt 0:00:02]} 39. Kc3 {[%emt 0:00:02]} Kc5 {[%emt 0:00:07]} 40. h4 {[%emt 0:00:02]} g5 {[%emt 0:00:01]} 41. hxg5 {[%emt 0:00:01]} hxg5 {[%emt 0:00:02]} 42. fxg5 {[%emt 0:00:01]} fxg5 {[%emt 0:00:02] Weighted Error Value: White=0.04 (flawless) /Black=0.03 (flawless) .  Mistake:       	White=1     	Black=1      OK:         	White=10    	Black=15     Best:        	White=1     	Black=1} 1/2-1/2

[Event "GRENKE Chess Classic 2024"]
[Site "Karlsruhe"]
[Date "2024.03.31"]
[Round "10.3"]
[White "Keymer, Vincent"]
[Black "Ding, Liren"]
[Result "1-0"]
[ECO "A06"]
[WhiteElo "2738"]
[BlackElo "2762"]
[Annotator "TA"]
[PlyCount "61"]
[EventDate "2024.03.26"]
[EventType "tourn"]
[EventCountry "GER"]
[SourceTitle "playchess.com"]
[Source "ChessBase"]
[SourceQuality "1"]
[TimeControl "2700+10"]

{[%evp 9,61,0,7,0,0,0,14,0,-14,-15,0,-44,0,-37,-27,-38,-18,-28,0,0,0,-26,0,0,0,8,50,60,116,123,114,121,144,127,377,413,393,384,481,470,764,767,742,594,598,593,610,600,555,573,550,542,500,452]} 1. Nf3 {[%emt 0:00:03]} d5 {[%emt 0:00:01]} 2. g3 {[%emt 0:00:01]} Nf6 {[%emt 0:00:05][%cal Bg8f6,Bf6d7,Bd7b6][%mdl 32]} 3. Bg2 {[%emt 0:00:02]} g6 {[%emt 0:00:28]} 4. c4 {[%emt 0:01:21]} dxc4 {[%emt 0:00:06]} 5. Qa4+ {[%emt 0:00:52]} Nfd7 {[%emt 0:00:39]} 6. h4 {[%emt 0:01:54][%cal Oh4h5]} Nc6 {[%emt 0:00:41]} 7. Qxc4 {[%emt 0:00:08]} Bg7 {[%emt 0:00:03]} 8. Nc3 {[%emt 0:02:41] The position is equal.} Nb6 {[%emt 0:00:25]} 9. Qb3 {[%emt 0:00:13]} h6 {[%emt 0:01:43]} 10. d3 {[%emt 0:02:03]} O-O {[%emt 0:00:40]} 11. O-O {[%emt 0:00:56]} e5 {[%emt 0:00:16]} 12. Ne4 {[%emt 0:01:51]} a5 {[%emt 0:01:34]} 13. Bd2 {[%emt 0:03:14]} Bg4 {[%emt 0:00:35]} 14. Qd1 {[%emt 0:01:29]} Nd5 {[%emt 0:00:55]} 15. Rc1 {[%emt 0:01:41]} Nd4 {[%emt 0:01:17]} 16. Nxd4 {[%emt 0:01:06]} exd4 {[%emt 0:00:01]} 17. Qb3 {[%emt 0:00:03]} c6 {[%emt 0:03:08]} 18. Qxb7 {[%emt 0:01:11]} Bxe2 {[%emt 0:00:11]} (18... Rb8 $1 $14 19. Qxc6 Rxb2 (19... Bxe2 20. Rfe1 $16)) 19. Rfe1 $16 {[%emt 0:00:52]} Bxd3 {[%emt 0:00:03] [#]} 20. Nc5 $1 {[%emt 0:01:10]} Rb8 {[%emt 0:06:00]} 21. Qxc6 {[%emt 0:03:40] White has more active pieces.} Rxb2 $2 {[%emt 0:00:06] This costs Black the game.} (21... Nb4 $16 22. Bxb4 Bb5) 22. Bxd5 $18 {[%emt 0:02:40]} (22. Nxd3 Rxd2 23. Bxd5 Rxd3 $16) 22... Bb5 {[%emt 0:03:07] [#]} (22... Rxd2 23. Nd7 (23. Nxd3 Rxd3 24. Bxf7+ Kh8 $16) 23... Kh7 24. Nxf8+ Bxf8 25. Bxf7 $18) 23. Qb7 {[%emt 0:03:55]} d3 {[%emt 0:00:15]} 24. Ne6 {[%emt 0:09:33] White is clearly winning.} fxe6 {[%emt 0:00:02]} (24... Qb8 $142) 25. Rxe6 {[%emt 0:00:01]} (25. Bxe6+ Kh8 26. Rc7 (26. Rc8 Qf6 $15) 26... Bc6 (26... Rxd2 $2 27. Rxg7 $18) 27. Qxc6 Rxd2 $11) 25... Kh8 {[%emt 0:02:16]} 26. Rxg6 {[%emt 0:00:07][%csl Gg6][%cal Rb7g7]} Bd7 {[%emt 0:01:04]} 27. Rxh6+ {[%emt 0:00:02]} Bxh6 {[%emt 0:00:06]} 28. Qxb2+ {[%emt 0:00:01]} Bg7 {[%emt 0:00:14]} 29. Bc3 {[%emt 0:00:01]} Bxc3 {[%emt 0:00:08]} 30. Qxc3+ {[%emt 0:00:01]} Qf6 {[%emt 0:00:01]} 31. Be4 {[%emt 0:00:22] Weighted Error Value: White=0.16 (very precise) /Black=0.27 (precise) .  Loses game:     	---       	Black=1      Mistake:       	---       	Black=2      Inaccurate:     	White=4     	Black=4      OK:         	White=8     	Black=7      Best:        	White=4     	Black=1      Strong:       	White=1     	---} ({Not} 31. Qxa5 Qxf2+ 32. Kh1 Qxg3 33. Qc3+ Kh7 34. Be4+ Kh6 35. Qd2+ Rf4 36. Bxd3 Be6 $11 (36... Qxh4+ 37. Qh2 $11)) 1-0